[Event "Titled Tuesday Blitz April 4 Late 2023"]
[White "Hirneise, Jens"]
[Black "Movahed, Sina"]
[WhiteFideId "24614734"]
[BlackFideId "42520835"]
[WhiteElo "2345"]
[BlackElo "2225"]
[Result "1/2-1/2"]
[Round "07"]
[TimeControl "180+2"]
[Date "2023.04.04"]
[WhiteClock "0:00:16"]
[BlackClock "0:00:18"]

1. c4 {[%clk 0:03:00]}  Nf6 {[%clk 0:02:59]} 2. e3 {[%clk 0:03:00]}  g6 {[%clk 0:03:00]} 3. b3 {[%clk 0:02:59]}  Bg7 {[%clk 0:03:00]} 4. Bb2 {[%clk 0:03:00]}  O-O {[%clk 0:03:00]} 5. Nf3 {[%clk 0:03:00]}  d6 {[%clk 0:03:00]} 6. d4 {[%clk 0:02:58]}  Nbd7 {[%clk 0:02:57]} 7. Nc3 {[%clk 0:02:59]}  e5 {[%clk 0:02:57]} 8. dxe5 {[%clk 0:02:58]}  dxe5 {[%clk 0:02:57]} 9. Be2 {[%clk 0:02:57]}  e4 {[%clk 0:02:55]} 10. Nd2 {[%clk 0:02:54]}  Nc5 {[%clk 0:02:54]} 11. O-O {[%clk 0:02:54]}  Re8 {[%clk 0:02:49]} 12. b4 {[%clk 0:02:46]}  Nd3 {[%clk 0:02:36]} 13. Bxd3 {[%clk 0:02:46]}  exd3 {[%clk 0:02:37]} 14. h3 {[%clk 0:02:40]}  a5 {[%clk 0:02:35]} 15. a3 {[%clk 0:02:33]}  b6 {[%clk 0:02:33]} 16. Qf3 {[%clk 0:02:30]}  Rb8 {[%clk 0:02:31]} 17. Nd5 {[%clk 0:02:20]}  Nd7 {[%clk 0:01:57]} 18. Bxg7 {[%clk 0:02:16]}  Kxg7 {[%clk 0:01:58]} 19. Qf4 {[%clk 0:02:10]}  Ne5 {[%clk 0:01:55]} 20. Qd4 {[%clk 0:02:07]}  c6 {[%clk 0:01:45]} 21. Nc3 {[%clk 0:01:19]}  Qxd4 {[%clk 0:01:23]} 22. exd4 {[%clk 0:01:20]}  Nd7 {[%clk 0:01:23]} 23. Rfe1 {[%clk 0:01:08]}  Rxe1+ {[%clk 0:01:21]} 24. Rxe1 {[%clk 0:01:09]}  axb4 {[%clk 0:01:21]} 25. axb4 {[%clk 0:01:08]}  Ra8 {[%clk 0:01:20]} 26. Re3 {[%clk 0:01:02]}  Ra1+ {[%clk 0:01:03]} 27. Kh2 {[%clk 0:01:02]}  Ra3 {[%clk 0:01:03]} 28. Rxd3 {[%clk 0:00:59]}  Ba6 {[%clk 0:01:03]} 29. d5 {[%clk 0:00:30]}  cxd5 {[%clk 0:00:53]} 30. b5 {[%clk 0:00:19]}  Nc5 {[%clk 0:00:33]} 31. Rg3 {[%clk 0:00:14]}  Bb7 {[%clk 0:00:20]} 32. Nxd5 {[%clk 0:00:14]}  Ra2 {[%clk 0:00:19]} 33. Nf3 {[%clk 0:00:09]}  Bxd5 {[%clk 0:00:19]} 34. cxd5 {[%clk 0:00:09]}  Rb2 {[%clk 0:00:19]} 35. Nd4 {[%clk 0:00:09]}  Rd2 {[%clk 0:00:19]} 36. Nb3 {[%clk 0:00:05]}  Nxb3 {[%clk 0:00:18]} 37. Rxb3 {[%clk 0:00:06]}  Rxd5 {[%clk 0:00:18]} 38. Kg3 {[%clk 0:00:06]}  Kf6 {[%clk 0:00:18]} 39. f4 {[%clk 0:00:07]}  Ke6 {[%clk 0:00:18]} 40. Kf3 {[%clk 0:00:07]}  Kd6 {[%clk 0:00:19]} 41. Ke4 {[%clk 0:00:08]}  f5+ {[%clk 0:00:19]} 42. Ke3 {[%clk 0:00:08]}  Kc5 {[%clk 0:00:19]} 43. Rc3+ {[%clk 0:00:08]}  Kxb5 {[%clk 0:00:19]} 44. Rc7 {[%clk 0:00:09]}  h5 {[%clk 0:00:19]} 45. Rg7 {[%clk 0:00:08]}  Rd6 {[%clk 0:00:20]} 46. Kf3 {[%clk 0:00:08]}  Kb4 {[%clk 0:00:20]} 47. g4 {[%clk 0:00:08]}  fxg4+ {[%clk 0:00:19]} 48. hxg4 {[%clk 0:00:09]}  hxg4+ {[%clk 0:00:13]} 49. Kxg4 {[%clk 0:00:10]}  b5 {[%clk 0:00:14]} 50. Kg5 {[%clk 0:00:11]}  Ka3 {[%clk 0:00:14]} 51. Rxg6 {[%clk 0:00:11]}  Rxg6+ {[%clk 0:00:13]} 52. Kxg6 {[%clk 0:00:12]}  b4 {[%clk 0:00:13]} 53. f5 {[%clk 0:00:13]}  b3 {[%clk 0:00:14]} 54. f6 {[%clk 0:00:14]}  b2 {[%clk 0:00:15]} 55. f7 {[%clk 0:00:14]}  b1=Q+ {[%clk 0:00:16]} 56. Kg7 {[%clk 0:00:15]}  Qg1+ {[%clk 0:00:16]} 57. Kh8 {[%clk 0:00:14]}  Qh2+ {[%clk 0:00:16]} 58. Kg8 {[%clk 0:00:15]}  Qg3+ {[%clk 0:00:17]} 59. Kh8 {[%clk 0:00:15]}  Qf4 {[%clk 0:00:17]} 60. Kg8 {[%clk 0:00:15]}  Qg5+ {[%clk 0:00:18]} 61. Kh8 {[%clk 0:00:15]}  Qh6+ {[%clk 0:00:18]} 62. Kg8 {[%clk 0:00:15]}  Qg6+ {[%clk 0:00:18]} 63. Kh8 {[%clk 0:00:16]}  Qxf7 {[%clk 0:00:18]} 1/2-1/2


[Site "https://www.chess.com"]

[Event "Titled Tuesday Blitz April 4 Late 2023"]
[White "Vakhlamov, Igor L."]
[Black "Aydincelebi, Kagan"]
[WhiteFideId "24126748"]
[BlackFideId "6361102"]
[WhiteElo "2400"]
[BlackElo "2180"]
[Result "1/2-1/2"]
[Round "07"]
[TimeControl "180+2"]
[Date "2023.04.04"]
[WhiteClock "0:00:06"]
[BlackClock "0:00:08"]

1. e4 {[%clk 0:02:59]}  c5 {[%clk 0:02:58]} 2. Nf3 {[%clk 0:03:00]}  Nc6 {[%clk 0:02:58]} 3. Nc3 {[%clk 0:03:00]}  Nf6 {[%clk 0:02:58]} 4. Bb5 {[%clk 0:03:00]}  d6 {[%clk 0:02:50]} 5. d4 {[%clk 0:02:59]}  cxd4 {[%clk 0:02:49]} 6. Qxd4 {[%clk 0:03:00]}  Bd7 {[%clk 0:02:48]} 7. Bxc6 {[%clk 0:03:01]}  bxc6 {[%clk 0:02:49]} 8. e5 {[%clk 0:03:01]}  dxe5 {[%clk 0:02:21]} 9. Nxe5 {[%clk 0:03:02]}  Be6 {[%clk 0:02:03]} 10. Qxd8+ {[%clk 0:02:58]}  Rxd8 {[%clk 0:02:04]} 11. Nxc6 {[%clk 0:02:59]}  Rd7 {[%clk 0:02:01]} 12. Be3 {[%clk 0:02:45]}  a6 {[%clk 0:01:55]} 13. O-O {[%clk 0:02:42]}  Bf5 {[%clk 0:01:55]} 14. Rac1 {[%clk 0:02:21]}  e6 {[%clk 0:01:54]} 15. Rfd1 {[%clk 0:02:05]}  Bd6 {[%clk 0:01:53]} 16. h3 {[%clk 0:02:02]}  h5 {[%clk 0:01:52]} 17. Rd2 {[%clk 0:01:56]}  Bc7 {[%clk 0:01:31]} 18. Rcd1 {[%clk 0:01:49]}  Rxd2 {[%clk 0:01:30]} 19. Rxd2 {[%clk 0:01:50]}  Ne4 {[%clk 0:01:26]} 20. Nxe4 {[%clk 0:01:48]}  Bxe4 {[%clk 0:01:27]} 21. Bf4 {[%clk 0:01:35]}  Bxc6 {[%clk 0:01:01]} 22. Bxc7 {[%clk 0:01:35]}  O-O {[%clk 0:01:02]} 23. b3 {[%clk 0:01:33]}  Rc8 {[%clk 0:01:02]} 24. Bf4 {[%clk 0:01:30]}  f6 {[%clk 0:01:02]} 25. Kf1 {[%clk 0:01:25]}  e5 {[%clk 0:01:02]} 26. Be3 {[%clk 0:01:26]}  Kf7 {[%clk 0:01:03]} 27. c4 {[%clk 0:01:21]}  Ke6 {[%clk 0:01:02]} 28. Bc5 {[%clk 0:01:21]}  Be4 {[%clk 0:00:55]} 29. Rd6+ {[%clk 0:01:17]}  Kf5 {[%clk 0:00:55]} 30. Bb4 {[%clk 0:01:13]}  Ra8 {[%clk 0:00:36]} 31. Ba5 {[%clk 0:01:01]}  Bb1 {[%clk 0:00:36]} 32. Rd2 {[%clk 0:01:00]}  Ke6 {[%clk 0:00:36]} 33. Ke2 {[%clk 0:00:58]}  Ra7 {[%clk 0:00:36]} 34. Rb2 {[%clk 0:00:55]}  Be4 {[%clk 0:00:35]} 35. f3 {[%clk 0:00:56]}  Bf5 {[%clk 0:00:34]} 36. b4 {[%clk 0:00:50]}  Rd7 {[%clk 0:00:34]} 37. Rb3 {[%clk 0:00:49]}  g5 {[%clk 0:00:30]} 38. a4 {[%clk 0:00:38]}  Bc2 {[%clk 0:00:29]} 39. Ra3 {[%clk 0:00:38]}  Bd1+ {[%clk 0:00:23]} 40. Ke1 {[%clk 0:00:36]}  g4 {[%clk 0:00:24]} 41. hxg4 {[%clk 0:00:35]}  hxg4 {[%clk 0:00:25]} 42. b5 {[%clk 0:00:34]}  axb5 {[%clk 0:00:24]} 43. axb5 {[%clk 0:00:35]}  gxf3 {[%clk 0:00:23]} 44. gxf3 {[%clk 0:00:36]}  Bc2 {[%clk 0:00:22]} 45. Rc3 {[%clk 0:00:29]}  Ba4 {[%clk 0:00:21]} 46. Bb6 {[%clk 0:00:21]}  f5 {[%clk 0:00:18]} 47. Be3 {[%clk 0:00:19]}  e4 {[%clk 0:00:18]} 48. fxe4 {[%clk 0:00:19]}  fxe4 {[%clk 0:00:19]} 49. Ra3 {[%clk 0:00:19]}  Bc2 {[%clk 0:00:12]} 50. c5 {[%clk 0:00:16]}  Rd3 {[%clk 0:00:13]} 51. Ra6+ {[%clk 0:00:17]}  Ke5 {[%clk 0:00:13]} 52. Kf2 {[%clk 0:00:16]}  Rb3 {[%clk 0:00:12]} 53. c6 {[%clk 0:00:13]}  Bd3 {[%clk 0:00:12]} 54. c7 {[%clk 0:00:12]}  Rc3 {[%clk 0:00:13]} 55. Ra7 {[%clk 0:00:07]}  Rc2+ {[%clk 0:00:12]} 56. Kg1 {[%clk 0:00:06]}  Bxb5 {[%clk 0:00:13]} 57. Ra5 {[%clk 0:00:06]}  Rxc7 {[%clk 0:00:11]} 58. Rxb5+ {[%clk 0:00:07]}  Ke6 {[%clk 0:00:12]} 59. Kf2 {[%clk 0:00:07]}  Rc3 {[%clk 0:00:12]} 60. Ke2 {[%clk 0:00:07]}  Rd3 {[%clk 0:00:13]} 61. Rh5 {[%clk 0:00:07]}  Kf6 {[%clk 0:00:13]} 62. Bf4 {[%clk 0:00:08]}  Rf3 {[%clk 0:00:12]} 63. Be5+ {[%clk 0:00:06]}  Ke6 {[%clk 0:00:13]} 64. Bd4 {[%clk 0:00:06]}  Kd6 {[%clk 0:00:12]} 65. Re5 {[%clk 0:00:04]}  Rh3 {[%clk 0:00:13]} 66. Rxe4 {[%clk 0:00:04]}  Kd5 {[%clk 0:00:13]} 67. Rg4 {[%clk 0:00:05]}  Rh2+ {[%clk 0:00:14]} 68. Bf2 {[%clk 0:00:05]}  Ke5 {[%clk 0:00:13]} 69. Kf3 {[%clk 0:00:05]}  Kf5 {[%clk 0:00:13]} 70. Bg3 {[%clk 0:00:06]}  Rh1 {[%clk 0:00:13]} 71. Rf4+ {[%clk 0:00:07]}  Ke6 {[%clk 0:00:14]} 72. Re4+ {[%clk 0:00:07]}  Kd5 {[%clk 0:00:14]} 73. Re5+ {[%clk 0:00:07]}  Kd4 {[%clk 0:00:15]} 74. Re7 {[%clk 0:00:07]}  Rf1+ {[%clk 0:00:15]} 75. Bf2+ {[%clk 0:00:08]}  Kd5 {[%clk 0:00:16]} 76. Ke3 {[%clk 0:00:08]}  Ra1 {[%clk 0:00:14]} 77. Rd7+ {[%clk 0:00:08]}  Ke6 {[%clk 0:00:14]} 78. Rd3 {[%clk 0:00:09]}  Kf5 {[%clk 0:00:14]} 79. Kf3 {[%clk 0:00:08]}  Rb1 {[%clk 0:00:13]} 80. Bg3 {[%clk 0:00:08]}  Ra1 {[%clk 0:00:13]} 81. Rd5+ {[%clk 0:00:08]}  Ke6 {[%clk 0:00:14]} 82. Rb5 {[%clk 0:00:09]}  Ra3+ {[%clk 0:00:14]} 83. Kg4 {[%clk 0:00:09]}  Ra4+ {[%clk 0:00:14]} 84. Bf4 {[%clk 0:00:09]}  Rc4 {[%clk 0:00:14]} 85. Re5+ {[%clk 0:00:10]}  Kf6 {[%clk 0:00:15]} 86. Rd5 {[%clk 0:00:10]}  Ke6 {[%clk 0:00:15]} 87. Rd6+ {[%clk 0:00:10]}  Ke7 {[%clk 0:00:15]} 88. Ra6 {[%clk 0:00:11]}  Rc5 {[%clk 0:00:15]} 89. Be3 {[%clk 0:00:11]}  Rd5 {[%clk 0:00:15]} 90. Kf4 {[%clk 0:00:11]}  Rb5 {[%clk 0:00:16]} 91. Ke4 {[%clk 0:00:11]}  Rh5 {[%clk 0:00:16]} 92. Bd4 {[%clk 0:00:10]}  Kf7 {[%clk 0:00:14]} 93. Be5 {[%clk 0:00:10]}  Rh1 {[%clk 0:00:13]} 94. Kf5 {[%clk 0:00:08]}  Rh5+ {[%clk 0:00:13]} 95. Ke4 {[%clk 0:00:08]}  Rh1 {[%clk 0:00:14]} 96. Bf4 {[%clk 0:00:08]}  Ke7 {[%clk 0:00:14]} 97. Kf5 {[%clk 0:00:06]}  Rh5+ {[%clk 0:00:14]} 98. Bg5+ {[%clk 0:00:06]}  Kd7 {[%clk 0:00:14]} 99. Kf6 {[%clk 0:00:05]}  Rh1 {[%clk 0:00:13]} 100. Bf4 {[%clk 0:00:06]}  Rf1 {[%clk 0:00:13]} 101. Rd6+ {[%clk 0:00:06]}  Kc8 {[%clk 0:00:13]} 102. Ke5 {[%clk 0:00:05]}  Kb7 {[%clk 0:00:12]} 103. Rd2 {[%clk 0:00:05]}  Re1+ {[%clk 0:00:13]} 104. Kd6 {[%clk 0:00:05]}  Ka6 {[%clk 0:00:10]} 105. Be5 {[%clk 0:00:04]}  Kb5 {[%clk 0:00:09]} 106. Bd4 {[%clk 0:00:02]}  Kc4 {[%clk 0:00:09]} 107. Bc5 {[%clk 0:00:03]}  Rc1 {[%clk 0:00:08]} 108. Rd4+ {[%clk 0:00:03]}  Kb3 {[%clk 0:00:07]} 109. Kd5 {[%clk 0:00:02]}  Rh1 {[%clk 0:00:07]} 110. Rb4+ {[%clk 0:00:03]}  Kc3 {[%clk 0:00:07]} 111. Rg4 {[%clk 0:00:03]}  Rh5+ {[%clk 0:00:07]} 112. Kc6 {[%clk 0:00:04]}  Rh6+ {[%clk 0:00:07]} 113. Kb5 {[%clk 0:00:04]}  Kd3 {[%clk 0:00:08]} 114. Rg3+ {[%clk 0:00:05]}  Ke4 {[%clk 0:00:08]} 115. Kc4 {[%clk 0:00:05]}  Ra6 {[%clk 0:00:08]} 116. Re3+ {[%clk 0:00:06]} 1/2-1/2


[Site "https://www.chess.com"]

[Event "Titled Tuesday Blitz April 4 Late 2023"]
[White "Duda, Jan-Krzysztof"]
[Black "Jaracz, Pawel"]
[WhiteFideId "1170546"]
[BlackFideId "1102222"]
[WhiteElo "2790"]
[BlackElo "2438"]
[Result "1-0"]
[Round "07"]
[TimeControl "180+2"]
[Date "2023.04.04"]
[WhiteClock "0:00:16"]
[BlackClock "0:00:23"]

1. e4 {[%clk 0:02:53]}  e5 {[%clk 0:03:00]} 2. Nf3 {[%clk 0:02:53]}  Nc6 {[%clk 0:03:00]} 3. Bb5 {[%clk 0:02:53]}  a6 {[%clk 0:03:00]} 4. Ba4 {[%clk 0:02:53]}  Nf6 {[%clk 0:03:00]} 5. O-O {[%clk 0:02:54]}  Nxe4 {[%clk 0:03:01]} 6. d4 {[%clk 0:02:54]}  Be7 {[%clk 0:03:00]} 7. Re1 {[%clk 0:02:50]}  b5 {[%clk 0:02:56]} 8. Rxe4 {[%clk 0:02:47]}  d5 {[%clk 0:02:57]} 9. Nxe5 {[%clk 0:02:46]}  Nxe5 {[%clk 0:02:57]} 10. Rxe5 {[%clk 0:02:46]}  bxa4 {[%clk 0:02:57]} 11. b3 {[%clk 0:02:46]}  O-O {[%clk 0:02:56]} 12. Ba3 {[%clk 0:02:41]}  Bxa3 {[%clk 0:02:56]} 13. Nxa3 {[%clk 0:02:42]}  Qd6 {[%clk 0:02:49]} 14. Nb1 {[%clk 0:02:43]}  f6 {[%clk 0:02:48]} 15. Re1 {[%clk 0:02:39]}  Bd7 {[%clk 0:02:36]} 16. Nc3 {[%clk 0:02:36]}  Rfe8 {[%clk 0:02:33]} 17. Qf3 {[%clk 0:02:35]}  Bc6 {[%clk 0:02:23]} 18. h3 {[%clk 0:02:33]}  Rad8 {[%clk 0:01:31]} 19. Rxe8+ {[%clk 0:02:19]}  Rxe8 {[%clk 0:01:31]} 20. Nxa4 {[%clk 0:02:20]}  Bxa4 {[%clk 0:01:30]} 21. bxa4 {[%clk 0:02:20]}  Qc6 {[%clk 0:01:28]} 22. a5 {[%clk 0:02:05]}  Re4 {[%clk 0:01:27]} 23. Qd3 {[%clk 0:02:05]}  Qe6 {[%clk 0:01:20]} 24. Qc3 {[%clk 0:02:02]}  h5 {[%clk 0:01:07]} 25. Rf1 {[%clk 0:01:36]}  Kh7 {[%clk 0:00:53]} 26. a3 {[%clk 0:01:36]}  Re2 {[%clk 0:00:47]} 27. Qxc7 {[%clk 0:01:34]}  Qe4 {[%clk 0:00:47]} 28. c3 {[%clk 0:00:42]}  Re1 {[%clk 0:00:43]} 29. Qb7 {[%clk 0:00:41]}  Qe2 {[%clk 0:00:32]} 30. Rxe1 {[%clk 0:00:41]}  Qxe1+ {[%clk 0:00:32]} 31. Kh2 {[%clk 0:00:42]}  Qxf2 {[%clk 0:00:31]} 32. Qxd5 {[%clk 0:00:41]}  Qf4+ {[%clk 0:00:31]} 33. g3 {[%clk 0:00:27]}  Qd2+ {[%clk 0:00:31]} 34. Qg2 {[%clk 0:00:27]}  Qxc3 {[%clk 0:00:31]} 35. d5 {[%clk 0:00:27]}  Qd3 {[%clk 0:00:27]} 36. h4 {[%clk 0:00:27]}  Kh6 {[%clk 0:00:26]} 37. a4 {[%clk 0:00:24]}  g5 {[%clk 0:00:25]} 38. Qf2 {[%clk 0:00:15]}  Kg6 {[%clk 0:00:23]} 39. hxg5 {[%clk 0:00:16]}  fxg5 {[%clk 0:00:24]} 40. Qb6+ {[%clk 0:00:16]}  Kf5 {[%clk 0:00:23]} 41. Qe6# {[%clk 0:00:16]} 1-0


[Site "https://www.chess.com"]

[Event "Titled Tuesday Blitz April 4 Late 2023"]
[White "EREBUNI91"]
[Black "Hakobyan, Aram"]
[BlackFideId "13306677"]
[WhiteElo "2662"]
[BlackElo "2584"]
[Result "0-1"]
[Round "07"]
[TimeControl "180+2"]
[Date "2023.04.04"]
[WhiteClock "0:01:30"]
[BlackClock "0:01:39"]

1. e4 {[%clk 0:03:00]}  g6 {[%clk 0:03:00]} 2. d4 {[%clk 0:03:00]}  Bg7 {[%clk 0:03:01]} 3. Nf3 {[%clk 0:02:59]}  Nf6 {[%clk 0:03:01]} 4. e5 {[%clk 0:02:58]}  Ne4 {[%clk 0:03:01]} 5. Bd3 {[%clk 0:02:56]}  d5 {[%clk 0:03:02]} 6. exd6 {[%clk 0:02:54]}  Nxd6 {[%clk 0:03:02]} 7. O-O {[%clk 0:02:54]}  Bg4 {[%clk 0:03:02]} 8. h3 {[%clk 0:02:47]}  Bxf3 {[%clk 0:03:02]} 9. Qxf3 {[%clk 0:02:48]}  Nc6 {[%clk 0:03:00]} 10. c3 {[%clk 0:02:42]}  e5 {[%clk 0:03:01]} 11. Re1 {[%clk 0:02:19]}  O-O {[%clk 0:03:01]} 12. dxe5 {[%clk 0:02:19]}  Nxe5 {[%clk 0:03:01]} 13. Qg3 {[%clk 0:02:20]}  Re8 {[%clk 0:02:59]} 14. Rd1 {[%clk 0:02:09]}  Nxd3 {[%clk 0:02:59]} 15. Qxd3 {[%clk 0:02:08]}  Nf5 {[%clk 0:02:57]} 16. Qf3 {[%clk 0:01:55]}  Qh4 {[%clk 0:01:51]} 17. Bf4 {[%clk 0:01:50]}  c6 {[%clk 0:01:48]} 18. Nd2 {[%clk 0:01:45]}  Qe7 {[%clk 0:01:45]} 19. Nc4 {[%clk 0:01:34]}  Rad8 {[%clk 0:01:44]} 20. Rxd8 {[%clk 0:01:28]}  Rxd8 {[%clk 0:01:45]} 21. Rd1 {[%clk 0:01:29]}  Rxd1+ {[%clk 0:01:38]} 22. Qxd1 {[%clk 0:01:30]}  Qe4 {[%clk 0:01:39]} 0-1


[Site "https://www.chess.com"]

[Event "Titled Tuesday Blitz April 4 Late 2023"]
[White "Martinez Alcantara, Jose Eduardo"]
[Black "Alex_Sahakyan2006"]
[WhiteFideId "3805662"]
[WhiteElo "2711"]
[BlackElo "2625"]
[Result "1-0"]
[Round "07"]
[TimeControl "180+2"]
[Date "2023.04.04"]
[WhiteClock "0:01:09"]
[BlackClock "0:00:01"]

1. e4 {[%clk 0:03:00]}  Nc6 {[%clk 0:02:58]} 2. Nf3 {[%clk 0:03:00]}  d6 {[%clk 0:02:58]} 3. d4 {[%clk 0:02:59]}  Nf6 {[%clk 0:02:59]} 4. Nc3 {[%clk 0:02:59]}  g6 {[%clk 0:02:59]} 5. h3 {[%clk 0:03:00]}  Bg7 {[%clk 0:02:59]} 6. d5 {[%clk 0:03:00]}  Nb8 {[%clk 0:02:59]} 7. Bc4 {[%clk 0:03:01]}  O-O {[%clk 0:02:59]} 8. a4 {[%clk 0:03:01]}  c6 {[%clk 0:02:59]} 9. O-O {[%clk 0:03:02]}  Nbd7 {[%clk 0:02:59]} 10. Qe2 {[%clk 0:03:02]}  Qc7 {[%clk 0:02:59]} 11. Bf4 {[%clk 0:03:02]}  Ne5 {[%clk 0:02:56]} 12. Bb3 {[%clk 0:02:53]}  Nxf3+ {[%clk 0:02:55]} 13. Qxf3 {[%clk 0:02:54]}  Nd7 {[%clk 0:02:56]} 14. Qe3 {[%clk 0:02:51]}  Qb6 {[%clk 0:02:53]} 15. a5 {[%clk 0:02:49]}  Qxe3 {[%clk 0:02:53]} 16. Bxe3 {[%clk 0:02:50]}  c5 {[%clk 0:02:37]} 17. Bc4 {[%clk 0:02:43]}  Rb8 {[%clk 0:02:30]} 18. Ra2 {[%clk 0:02:34]}  a6 {[%clk 0:02:28]} 19. Na4 {[%clk 0:02:32]}  f5 {[%clk 0:02:06]} 20. exf5 {[%clk 0:02:32]}  gxf5 {[%clk 0:02:07]} 21. f4 {[%clk 0:02:32]}  Nf6 {[%clk 0:02:06]} 22. Nb6 {[%clk 0:02:31]}  Bd7 {[%clk 0:02:01]} 23. Bd3 {[%clk 0:02:20]}  Kh8 {[%clk 0:01:46]} 24. c4 {[%clk 0:02:11]}  Be8 {[%clk 0:01:43]} 25. b3 {[%clk 0:02:10]}  Bg6 {[%clk 0:01:42]} 26. Re2 {[%clk 0:02:08]}  Nh5 {[%clk 0:01:37]} 27. Kh2 {[%clk 0:02:03]}  Nf6 {[%clk 0:01:31]} 28. Bc1 {[%clk 0:02:02]}  Rf7 {[%clk 0:01:30]} 29. Bb2 {[%clk 0:02:01]}  h5 {[%clk 0:01:27]} 30. Rfe1 {[%clk 0:02:01]}  Ne4 {[%clk 0:01:26]} 31. Bxg7+ {[%clk 0:02:01]}  Kxg7 {[%clk 0:01:26]} 32. h4 {[%clk 0:01:55]}  Re8 {[%clk 0:01:21]} 33. Re3 {[%clk 0:01:54]}  Nf6 {[%clk 0:01:21]} 34. Kg1 {[%clk 0:01:53]}  Ng4 {[%clk 0:01:21]} 35. R3e2 {[%clk 0:01:53]}  Nf6 {[%clk 0:01:16]} 36. Na4 {[%clk 0:01:51]}  Ne4 {[%clk 0:01:16]} 37. Bxe4 {[%clk 0:01:45]}  fxe4 {[%clk 0:01:17]} 38. g3 {[%clk 0:01:45]}  Rb8 {[%clk 0:01:01]} 39. Kf2 {[%clk 0:01:43]}  Kf6 {[%clk 0:00:54]} 40. Re3 {[%clk 0:01:42]}  Bf5 {[%clk 0:00:50]} 41. Ra1 {[%clk 0:01:40]}  e5 {[%clk 0:00:42]} 42. dxe6 {[%clk 0:01:37]}  Kxe6 {[%clk 0:00:42]} 43. Nc3 {[%clk 0:01:36]}  b5 {[%clk 0:00:24]} 44. axb6 {[%clk 0:01:35]}  Rxb6 {[%clk 0:00:21]} 45. Nd5 {[%clk 0:01:35]}  Rc6 {[%clk 0:00:20]} 46. Ree1 {[%clk 0:01:30]}  Rb7 {[%clk 0:00:20]} 47. Ra3 {[%clk 0:01:31]}  Kd7 {[%clk 0:00:17]} 48. Nf6+ {[%clk 0:01:29]}  Ke6 {[%clk 0:00:16]} 49. Nxe4 {[%clk 0:01:30]}  Bxe4 {[%clk 0:00:16]} 50. Rxe4+ {[%clk 0:01:31]}  Kf5 {[%clk 0:00:17]} 51. Re3 {[%clk 0:01:31]}  Rcb6 {[%clk 0:00:14]} 52. Kf3 {[%clk 0:01:32]}  Rd7 {[%clk 0:00:12]} 53. Rd3 {[%clk 0:01:30]}  Ke6 {[%clk 0:00:09]} 54. Ke4 {[%clk 0:01:29]}  Re7 {[%clk 0:00:10]} 55. Rd5 {[%clk 0:01:28]}  Kf6+ {[%clk 0:00:09]} 56. Kd3 {[%clk 0:01:26]}  Kg6 {[%clk 0:00:10]} 57. Rg5+ {[%clk 0:01:23]}  Kh6 {[%clk 0:00:10]} 58. f5 {[%clk 0:01:24]}  Re1 {[%clk 0:00:09]} 59. Kd2 {[%clk 0:01:23]}  Re4 {[%clk 0:00:08]} 60. Rg6+ {[%clk 0:01:22]}  Kh7 {[%clk 0:00:08]} 61. Rg5 {[%clk 0:01:23]}  Kh6 {[%clk 0:00:08]} 62. f6 {[%clk 0:01:17]}  d5 {[%clk 0:00:07]} 63. Rf5 {[%clk 0:01:14]}  Rb8 {[%clk 0:00:04]} 64. cxd5 {[%clk 0:01:13]}  Kg6 {[%clk 0:00:04]} 65. Rf3 {[%clk 0:01:11]}  Rd4+ {[%clk 0:00:02]} 66. Kc2 {[%clk 0:01:10]}  Rxd5 {[%clk 0:00:02]} 67. Rxa6 {[%clk 0:01:11]}  Rd7 {[%clk 0:00:01]} 68. Rc6 {[%clk 0:01:09]} 1-0


[Site "https://www.chess.com"]

[Event "Titled Tuesday Blitz April 4 Late 2023"]
[White "Zhigalko, Sergei"]
[Black "Papp, Levente"]
[WhiteFideId "13502956"]
[BlackFideId "751243"]
[WhiteElo "2626"]
[BlackElo "2380"]
[Result "1-0"]
[Round "07"]
[TimeControl "180+2"]
[Date "2023.04.04"]
[WhiteClock "0:01:03"]
[BlackClock "0:00:05"]

1. e4 {[%clk 0:03:00]}  e6 {[%clk 0:02:59]} 2. d4 {[%clk 0:03:00]}  d5 {[%clk 0:03:00]} 3. e5 {[%clk 0:03:01]}  c5 {[%clk 0:02:57]} 4. c3 {[%clk 0:03:01]}  Nc6 {[%clk 0:02:53]} 5. Nf3 {[%clk 0:03:02]}  a6 {[%clk 0:02:49]} 6. Bd3 {[%clk 0:03:01]}  b5 {[%clk 0:02:49]} 7. O-O {[%clk 0:02:56]}  c4 {[%clk 0:02:39]} 8. Bc2 {[%clk 0:02:57]}  Bd7 {[%clk 0:02:38]} 9. Re1 {[%clk 0:02:54]}  Qb6 {[%clk 0:02:36]} 10. h4 {[%clk 0:02:49]}  h6 {[%clk 0:02:17]} 11. h5 {[%clk 0:02:47]}  Nge7 {[%clk 0:02:05]} 12. Nh4 {[%clk 0:02:38]}  Nc8 {[%clk 0:01:51]} 13. Qg4 {[%clk 0:02:31]}  N8e7 {[%clk 0:01:19]} 14. Nd2 {[%clk 0:02:24]}  b4 {[%clk 0:01:08]} 15. Nf1 {[%clk 0:02:04]}  O-O-O {[%clk 0:00:58]} 16. Bd2 {[%clk 0:01:55]}  g5 {[%clk 0:00:49]} 17. Nf3 {[%clk 0:01:42]}  Nf5 {[%clk 0:00:45]} 18. b3 {[%clk 0:01:38]}  bxc3 {[%clk 0:00:42]} 19. Bxc3 {[%clk 0:01:39]}  Bb4 {[%clk 0:00:42]} 20. Bxb4 {[%clk 0:01:37]}  Nxb4 {[%clk 0:00:39]} 21. Rec1 {[%clk 0:01:37]}  Kb8 {[%clk 0:00:32]} 22. bxc4 {[%clk 0:01:34]}  Nxc2 {[%clk 0:00:15]} 23. Rab1 {[%clk 0:01:23]}  Bb5 {[%clk 0:00:09]} 24. Rxc2 {[%clk 0:01:12]}  dxc4 {[%clk 0:00:06]} 25. a4 {[%clk 0:01:13]}  Nxd4 {[%clk 0:00:07]} 26. Nxd4 {[%clk 0:01:13]}  Rxd4 {[%clk 0:00:06]} 27. Qf3 {[%clk 0:01:06]}  Rf4 {[%clk 0:00:06]} 28. Qe3 {[%clk 0:01:05]}  Qc6 {[%clk 0:00:04]} 29. axb5 {[%clk 0:01:03]}  axb5 {[%clk 0:00:05]} 30. Rcb2 {[%clk 0:01:03]} 1-0


[Site "https://www.chess.com"]

[Event "Titled Tuesday Blitz April 4 Late 2023"]
[White "Grigoriants, Sergey"]
[Black "Di Berardino, Diego Rafael"]
[WhiteFideId "4130804"]
[BlackFideId "2105446"]
[WhiteElo "2502"]
[BlackElo "2432"]
[Result "1-0"]
[Round "07"]
[TimeControl "180+2"]
[Date "2023.04.04"]
[WhiteClock "0:00:21"]
[BlackClock "0:00:03"]

1. d4 {[%clk 0:03:00]}  d5 {[%clk 0:02:57]} 2. c4 {[%clk 0:03:00]}  e6 {[%clk 0:02:58]} 3. Nc3 {[%clk 0:03:00]}  Nf6 {[%clk 0:02:58]} 4. Nf3 {[%clk 0:02:59]}  Be7 {[%clk 0:02:56]} 5. Bf4 {[%clk 0:02:57]}  O-O {[%clk 0:02:57]} 6. e3 {[%clk 0:02:56]}  b6 {[%clk 0:02:57]} 7. cxd5 {[%clk 0:02:55]}  Nxd5 {[%clk 0:02:57]} 8. Nxd5 {[%clk 0:02:54]}  Qxd5 {[%clk 0:02:58]} 9. Bd3 {[%clk 0:02:51]}  c5 {[%clk 0:02:38]} 10. Qc2 {[%clk 0:02:41]}  f5 {[%clk 0:02:32]} 11. Bc4 {[%clk 0:02:29]}  Qd8 {[%clk 0:02:18]} 12. O-O-O {[%clk 0:02:17]}  Nc6 {[%clk 0:02:03]} 13. dxc5 {[%clk 0:02:11]}  Qe8 {[%clk 0:02:03]} 14. cxb6 {[%clk 0:01:48]}  Nb4 {[%clk 0:00:52]} 15. Qb3 {[%clk 0:01:43]}  axb6 {[%clk 0:00:51]} 16. a3 {[%clk 0:01:35]}  b5 {[%clk 0:00:17]} 17. Bxe6+ {[%clk 0:01:31]}  Bxe6 {[%clk 0:00:17]} 18. Qxe6+ {[%clk 0:01:31]}  Kh8 {[%clk 0:00:18]} 19. Kb1 {[%clk 0:01:24]}  Na6 {[%clk 0:00:14]} 20. Bd6 {[%clk 0:01:14]}  Bxd6 {[%clk 0:00:07]} 21. Qxe8 {[%clk 0:01:14]}  Raxe8 {[%clk 0:00:08]} 22. Rxd6 {[%clk 0:01:14]}  Nc5 {[%clk 0:00:09]} 23. Rd5 {[%clk 0:01:01]}  Ne4 {[%clk 0:00:08]} 24. Rf1 {[%clk 0:00:50]}  b4 {[%clk 0:00:05]} 25. axb4 {[%clk 0:00:49]}  g5 {[%clk 0:00:04]} 26. Nd2 {[%clk 0:00:39]}  Rb8 {[%clk 0:00:01]} 27. Nxe4 {[%clk 0:00:37]}  fxe4 {[%clk 0:00:02]} 28. Rd4 {[%clk 0:00:35]}  Rfe8 {[%clk 0:00:02]} 29. Rc1 {[%clk 0:00:34]}  Rb7 {[%clk 0:00:02]} 30. Ka2 {[%clk 0:00:32]}  Rf7 {[%clk 0:00:02]} 31. Rc2 {[%clk 0:00:31]}  Ref8 {[%clk 0:00:02]} 32. Rxe4 {[%clk 0:00:21]}  Rxf2 {[%clk 0:00:02]} 33. Rxf2 {[%clk 0:00:21]}  Rxf2 {[%clk 0:00:03]} 34. b5 {[%clk 0:00:21]} 1-0


[Site "https://www.chess.com"]